bitfinex-derivatives/quotes_BTCF0:USTF0_20260221
["timestamp","ask_amount","ask_price","bid_price","bid_amount"]
[1771667457051,0.014658,68242.0,68238.0,0.00088]
[1771667457252,0.014658,68240.0,68237.0,0.57192099]
[1771667458258,0.014658,68239.0,68237.0,0.57192099]
[1771667458857,0.014659,68237.0,68232.0,0.01466]
[1771667459244,0.014659,68237.0,68231.0,0.01466]
[1771667459753,0.014659,68237.0,68230.0,0.07197535]
[1771667460060,0.014659,68237.0,68231.0,0.0008]
[1771667460360,0.014659,68237.0,68230.0,0.07197535]
[1771667460660,0.014658,68238.0,68230.0,0.07197535]
[1771667461359,0.014658,68239.0,68230.0,0.07197535]
[1771667461958,0.014659,68237.0,68230.0,0.07197535]
[1771667462153,0.014657,68246.0,68230.0,0.07197535]
[1771667462154,0.014658,68241.0,68230.0,0.07197535]
[1771667462560,0.014657,68246.0,68230.0,0.07197535]
[1771667463263,0.014659,68238.0,68230.0,0.07197535]
[1771667464253,0.029316,68242.0,68232.0,0.01466]
[1771667464555,0.014658,68241.0,68230.0,0.07197535]
[1771667464762,0.014659,68238.0,68230.0,0.05731535]
[1771667465459,0.014659,68237.0,68230.0,0.07197535]
[1771667465661,0.014659,68238.0,68231.0,0.01466]
[1771667469263,0.029318,68238.0,68230.0,0.01466]
[1771667469459,0.014658,68240.0,68230.0,0.01466]
[1771667469658,0.014658,68242.0,68230.0,0.01466]
[1771667469968,0.014659,68238.0,68230.0,0.01466]
[1771667470159,0.029318,68238.0,68230.0,0.01466]
[1771667470864,0.014659,68237.0,68230.0,0.01466]
[1771667471071,0.014659,68238.0,68230.0,0.01466]
[1771667472267,0.014658,68239.0,68231.0,0.01466]
[1771667472459,0.014658,68239.0,68232.0,0.01466]
[1771667473369,0.029316,68239.0,68231.0,0.01466]
[1771667473571,0.014659,68238.0,68231.0,0.01466]
[1771667474072,0.014659,68237.0,68230.0,0.01466]
[1771667477073,0.014659,68237.0,68229.0,0.02932]
[1771667477673,0.014659,68237.0,68229.0,0.01466]
[1771667478376,0.014659,68237.0,68230.0,0.01466]
[1771667487069,0.014659,68237.0,68231.0,0.00088]
[1771667487274,0.014659,68237.0,68230.0,0.01466]
[1771667490087,0.014659,68237.0,68231.0,0.00088]
[1771667490385,0.014659,68237.0,68230.0,0.01466]
[1771667492395,0.014659,68238.0,68230.0,0.01466]
[1771667495093,0.014659,68238.0,68230.0,0.02932]
[1771667496292,0.014659,68238.0,68230.0,0.01466]
[1771667498798,0.014659,68238.0,68230.0,0.02932]
[1771667499005,0.014659,68238.0,68230.0,0.01466]
[1771667500702,0.014659,68237.0,68230.0,0.01466]
[1771667502502,0.014659,68237.0,68228.0,0.014661]
[1771667502696,0.014659,68236.0,68228.0,0.014661]
[1771667502897,0.014659,68236.0,68229.0,0.01466]
[1771667503604,0.014659,68237.0,68229.0,0.01466]
[1771667503901,0.19784564,68236.0,68229.0,0.01466]
[1771667504210,0.014659,68237.0,68230.0,0.01466]
[1771667504506,0.19784645,68236.0,68230.0,0.01466]
[1771667504707,0.014659,68237.0,68230.0,0.01466]
[1771667504908,0.19784645,68236.0,68230.0,0.01466]
[1771667505109,0.014659,68237.0,68230.0,0.01466]
[1771667505299,0.19784692,68236.0,68230.0,0.01466]
[1771667505499,0.014659,68237.0,68230.0,0.01466]
[1771667505700,0.19784692,68236.0,68230.0,0.01466]
[1771667506005,0.014659,68237.0,68230.0,0.01466]
[1771667506207,0.19784692,68236.0,68230.0,0.01466]
[1771667506507,0.014659,68237.0,68229.0,0.01466]
[1771667506707,0.19784758,68236.0,68229.0,0.01466]
[1771667506908,0.014659,68237.0,68229.0,0.01466]
[1771667507109,0.19784758,68236.0,68229.0,0.01466]
[1771667507297,0.014659,68237.0,68229.0,0.01466]
[1771667507500,0.1978476,68236.0,68229.0,0.01466]
[1771667507702,0.014659,68237.0,68229.0,0.01466]
[1771667507902,0.1978476,68236.0,68229.0,0.01466]
[1771667508108,0.014659,68237.0,68229.0,0.01466]
[1771667508307,0.19784765,68236.0,68229.0,0.01466]
[1771667508506,0.014659,68237.0,68229.0,0.01466]
[1771667508707,0.19784765,68236.0,68229.0,0.01466]
[1771667508907,0.014659,68237.0,68229.0,0.01466]
[1771667509114,0.19784765,68236.0,68229.0,0.01466]
[1771667509312,0.014659,68237.0,68229.0,0.01466]
[1771667509612,0.19784773,68236.0,68229.0,0.01466]
[1771667509812,0.014659,68237.0,68229.0,0.01466]
[1771667510004,0.19784773,68236.0,68229.0,0.01466]
[1771667510204,0.014659,68237.0,68229.0,0.01466]
[1771667510405,0.19784768,68236.0,68229.0,0.01466]
[1771667510717,0.014659,68236.0,68229.0,0.01466]
[1771667511608,0.014659,68236.0,68228.0,0.014661]
[1771667514311,0.029318,68236.0,68228.0,0.014661]
[1771667514610,0.014659,68236.0,68228.0,0.014661]
[1771667514812,0.01466,68230.0,68225.0,0.01413278]
[1771667515012,0.01466,68230.0,68224.0,0.01494117]
[1771667516016,0.01466,68230.0,68222.0,0.03111228]
[1771667516613,0.01466,68230.0,68222.0,0.04577428]
[1771667518017,0.01466,68231.0,68223.0,0.02967239]
[1771667518218,0.01466,68231.0,68224.0,0.014661]
[1771667518423,0.01466,68232.0,68224.0,0.014661]
[1771667519626,0.01466,68231.0,68223.0,0.02967239]
[1771667520620,0.01466,68231.0,68224.0,0.014661]
[1771667521427,0.01466,68232.0,68224.0,0.014661]
[1771667522827,0.01466,68232.0,68224.0,0.029322]
[1771667523025,0.01466,68232.0,68225.0,0.014661]
[1771667524531,0.01466,68233.0,68225.0,0.014661]
[1771667524730,0.014659,68237.0,68225.0,0.014661]
[1771667524931,0.014659,68237.0,68229.0,0.01466]
[1771667525124,0.014659,68237.0,68229.0,0.02932]
[1771667525432,0.014659,68237.0,68230.0,0.01466]
[1771667526028,0.014659,68237.0,68231.0,0.0008]
[1771667526333,0.014659,68237.0,68230.0,0.01466]
[1771667526530,0.014659,68237.0,68231.0,0.01466]
[1771667529336,0.014659,68236.0,68231.0,0.01466]
[1771667531343,0.014659,68236.0,68228.0,0.014661]
[1771667532034,0.014659,68235.0,68230.0,0.00088]
[1771667532240,0.01466,68233.0,68227.0,0.014661]
[1771667533339,0.01466,68233.0,68224.0,0.014661]
[1771667534138,0.014659,68234.0,68222.0,0.01645028]
[1771667534441,0.014661,68228.0,68222.0,0.01645028]
[1771667536341,0.01466,68229.0,68222.0,0.01645028]
[1771667536637,0.014659,68238.0,68222.0,0.01645028]
[1771667536839,0.014659,68236.0,68225.0,0.014661]
[1771667537143,0.01466,68232.0,68225.0,0.014661]
[1771667538049,0.01466,68232.0,68226.0,0.00088]
[1771667538247,0.01466,68232.0,68225.0,0.014661]
[1771667539336,0.014659,68236.0,68225.0,0.014661]
[1771667540243,0.014659,68236.0,68226.0,0.014661]
[1771667541349,0.014659,68236.0,68228.0,0.014661]
[1771667542348,0.19881421,68235.0,68228.0,0.014661]
[1771667542538,0.014659,68235.0,68227.0,0.014661]
[1771667542739,0.014659,68236.0,68228.0,0.014661]
[1771667542940,0.19881421,68235.0,68228.0,0.014661]
[1771667543142,0.014659,68236.0,68229.0,0.01466]
[1771667543340,0.19874244,68235.0,68229.0,0.01466]
[1771667543644,0.014659,68236.0,68229.0,0.01466]
[1771667543844,0.19874244,68235.0,68229.0,0.01466]
[1771667544038,0.19874244,68234.0,68229.0,0.01466]
[1771667544238,0.014659,68236.0,68229.0,0.01466]
[1771667544239,0.19874244,68233.0,68229.0,0.01466]
[1771667544546,0.19874244,68232.0,68227.0,0.014661]
[1771667544747,0.19874244,68231.0,68227.0,0.014661]
[1771667544943,0.014659,68235.0,68227.0,0.014661]
[1771667545250,0.19879325,68234.0,68227.0,0.014661]
[1771667545450,0.19879325,68233.0,68227.0,0.014661]
[1771667545650,0.19879325,68232.0,68227.0,0.014661]
[1771667545852,0.19879325,68231.0,68227.0,0.014661]
[1771667546050,0.014659,68235.0,68227.0,0.014661]
[1771667546249,0.19879418,68234.0,68228.0,0.014661]
[1771667546551,0.19879418,68233.0,68228.0,0.014661]
[1771667546748,0.19879418,68232.0,68228.0,0.014661]
[1771667546953,0.19879418,68231.0,68228.0,0.014661]
[1771667547158,0.014659,68235.0,68227.0,0.014661]
[1771667547462,0.19879859,68234.0,68227.0,0.029322]
[1771667547750,0.19879859,68233.0,68227.0,0.014661]
[1771667547950,0.19879859,68232.0,68227.0,0.014661]
[1771667548251,0.19879859,68231.0,68227.0,0.014661]
[1771667548436,0.014659,68235.0,68227.0,0.014661]
[1771667548640,0.19880203,68234.0,68227.0,0.014661]
[1771667548840,0.19880203,68233.0,68227.0,0.029322]
[1771667549051,0.19880203,68232.0,68227.0,0.029322]
[1771667549354,0.19880203,68231.0,68227.0,0.014661]
[1771667549542,0.014659,68235.0,68227.0,0.014661]
[1771667549742,0.19880591,68234.0,68227.0,0.014661]
[1771667549943,0.19880591,68233.0,68227.0,0.014661]
[1771667550245,0.19880591,68232.0,68227.0,0.014661]
[1771667550439,0.19880591,68231.0,68227.0,0.014661]
[1771667550639,0.014659,68235.0,68227.0,0.014661]
[1771667550836,0.19880643,68234.0,68227.0,0.014661]
[1771667551041,0.19880643,68233.0,68227.0,0.014661]
[1771667551250,0.19880643,68232.0,68227.0,0.014661]
[1771667551454,0.19880643,68231.0,68227.0,0.014661]
[1771667551751,0.014659,68235.0,68227.0,0.014661]
[1771667551953,0.19881124,68234.0,68227.0,0.014661]
[1771667552155,0.014659,68235.0,68227.0,0.014661]
[1771667552156,0.19881124,68233.0,68227.0,0.014661]
[1771667552451,0.19881124,68232.0,68227.0,0.014661]
[1771667552652,0.19881124,68231.0,68227.0,0.014661]
[1771667552854,0.014659,68235.0,68227.0,0.014661]
[1771667553058,0.19881721,68234.0,68227.0,0.014661]
[1771667553349,0.19881721,68233.0,68227.0,0.014661]
[1771667553541,0.19881721,68232.0,68227.0,0.014661]
[1771667553739,0.19881721,68231.0,68227.0,0.014661]
[1771667553937,0.014659,68235.0,68227.0,0.014661]
[1771667555252,0.014659,68234.0,68227.0,0.014661]
[1771667558753,0.01466,68233.0,68226.0,0.014661]
[1771667559754,0.5438895,68236.0,68223.0,0.02967239]
[1771667559956,0.01466,68231.0,68223.0,0.02967239]
[1771667560254,0.01466,68231.0,68224.0,0.014661]
[1771667560655,0.01466,68232.0,68224.0,0.014661]
[1771667561044,0.01466,68232.0,68223.0,0.01501039]
[1771667561245,0.01466,68231.0,68223.0,0.01501039]
[1771667561553,0.01466,68231.0,68223.0,0.02967239]
[1771667562256,0.01466,68230.0,68223.0,0.01501039]
[1771667562555,0.01466,68230.0,68222.0,0.03111228]
[1771667562556,0.01466,68230.0,68222.0,0.014662]
[1771667565050,0.01466,68230.0,68224.0,0.0008]
[1771667565355,0.01466,68230.0,68222.0,0.014662]
[1771667569358,0.01466,68233.0,68222.0,0.014662]
[1771667569559,0.01466,68232.0,68224.0,0.014661]
[1771667570759,0.01466,68229.0,68221.0,0.03237812]
[1771667571359,0.01466,68229.0,68221.0,0.01771612]
[1771667572162,0.014661,68228.0,68221.0,0.03237812]
[1771667572362,0.014661,68229.0,68221.0,0.03237812]
[1771667573165,0.01466,68230.0,68222.0,0.014662]
[1771667573663,0.01466,68230.0,68222.0,0.029324]
[1771667573860,0.01466,68230.0,68222.0,0.014662]
[1771667574265,0.01466,68232.0,68222.0,0.014662]
[1771667574266,0.01466,68231.0,68222.0,0.014662]
[1771667574964,0.01466,68231.0,68223.0,0.014662]
[1771667577069,0.01466,68231.0,68225.0,0.0008]
[1771667577270,0.01466,68231.0,68223.0,0.014662]
[1771667580867,0.01466,68230.0,68222.0,0.014662]
[1771667583374,0.01466,68230.0,68222.0,0.029324]
[1771667583976,0.01466,68230.0,68222.0,0.014662]
[1771667584370,0.01466,68230.0,68222.0,0.029324]
[1771667584564,0.01466,68230.0,68222.0,0.014662]
[1771667584766,0.01466,68230.0,68221.0,0.03237812]
[1771667585179,0.01466,68230.0,68222.0,0.014662]
[1771667586376,0.01466,68231.0,68222.0,0.014662]
[1771667587071,0.01466,68231.0,68223.0,0.014662]
[1771667594182,0.01466,68231.0,68222.0,0.014662]
[1771667594483,0.5438895,68236.0,68222.0,0.029324]
[1771667594484,0.01466,68232.0,68222.0,0.029324]
[1771667594778,0.21438941,68231.0,68223.0,0.014662]
[1771667594975,0.01466,68231.0,68223.0,0.014662]
[1771667596282,0.01466,68232.0,68224.0,0.014661]
[1771667596482,0.19972554,68231.0,68224.0,0.014661]
[1771667596785,0.01466,68232.0,68224.0,0.014661]
[1771667597085,0.19972554,68231.0,68224.0,0.014661]
[1771667597379,0.01466,68232.0,68224.0,0.014661]
[1771667597572,0.19972405,68231.0,68224.0,0.014661]
[1771667597776,0.01466,68232.0,68224.0,0.014661]
[1771667597972,0.19972405,68231.0,68224.0,0.014661]
[1771667598176,0.01466,68232.0,68224.0,0.014661]
[1771667598379,0.19972284,68231.0,68224.0,0.014661]
[1771667598579,0.01466,68232.0,68224.0,0.014661]
[1771667598778,0.19972284,68231.0,68224.0,0.014661]
[1771667598984,0.01466,68232.0,68224.0,0.014661]
[1771667599186,0.19972284,68231.0,68224.0,0.014661]
[1771667599382,0.01466,68232.0,68224.0,0.014661]
[1771667599583,0.01466,68230.0,68221.0,0.01771612]
[1771667599982,0.01466,68230.0,68222.0,0.029324]
[1771667601883,0.01466,68230.0,68222.0,0.014662]
[1771667603191,0.01466,68230.0,68222.0,0.029324]
[1771667603387,0.01466,68230.0,68220.0,0.0322386]
[1771667603582,0.01466,68230.0,68219.0,0.014663]
[1771667603583,0.014661,68227.0,68219.0,0.014663]
[1771667603784,0.014661,68227.0,68217.0,0.014663]
[1771667604087,0.014661,68227.0,68218.0,0.014663]
[1771667604593,0.014661,68227.0,68219.0,0.014663]
[1771667605890,0.014661,68227.0,68219.0,0.029325]
[1771667606090,0.014661,68227.0,68219.0,0.014662]
[1771667606282,0.014661,68227.0,68218.0,0.014663]
[1771667606482,0.014661,68226.0,68219.0,0.014663]
[1771667607992,0.014661,68227.0,68219.0,0.029326]
[1771667608188,0.014661,68226.0,68219.0,0.014662]
[1771667608384,0.014661,68226.0,68219.0,0.029324]
[1771667608581,0.014661,68226.0,68219.0,0.014662]
[1771667608783,0.014661,68226.0,68219.0,0.029324]
[1771667609592,0.014661,68226.0,68220.0,0.014662]
[1771667610090,0.014661,68226.0,68220.0,0.015502]
[1771667610295,0.014661,68226.0,68220.0,0.014662]
[1771667612295,0.014661,68226.0,68219.0,0.014662]
[1771667612592,0.014661,68226.0,68220.0,0.014662]
[1771667613098,0.014661,68226.0,68220.0,0.015502]
[1771667613293,0.014661,68226.0,68220.0,0.014662]
[1771667614294,0.014661,68226.0,68217.0,0.17885773]
[1771667614295,0.014661,68228.0,68221.0,0.014662]
[1771667614497,0.014661,68228.0,68221.0,0.029324]
[1771667615195,0.014661,68228.0,68222.0,0.014662]
[1771667615404,0.029322,68226.0,68219.0,0.014662]
[1771667616389,0.014661,68225.0,68219.0,0.014662]
[1771667616590,0.014662,68222.0,68216.0,0.03368969]
[1771667616992,0.014662,68222.0,68216.0,0.01902669]
[1771667617186,0.014662,68221.0,68216.0,0.01902669]
[1771667617392,0.014662,68224.0,68216.0,0.01902669]
[1771667617393,0.014662,68222.0,68216.0,0.01902669]
[1771667618497,0.014662,68221.0,68216.0,0.01902669]
[1771667619298,0.014662,68222.0,68216.0,0.01902669]
[1771667619600,0.029324,68222.0,68216.0,0.01902669]
[1771667620101,0.014662,68222.0,68216.0,0.01902669]
[1771667622205,0.014662,68221.0,68216.0,0.01902669]
[1771667623006,0.5438895,68236.0,68217.0,0.014663]
[1771667623196,0.01466,68233.0,68226.0,0.17885773]
[1771667623400,0.21585388,68232.0,68223.0,0.17885773]
[1771667623610,0.20119388,68231.0,68220.0,0.35771546]
[1771667623904,0.20119388,68231.0,68220.0,0.17885773]
[1771667624306,0.21585388,68231.0,68221.0,0.014662]
[1771667624499,0.21585388,68230.0,68220.0,0.19351973]
[1771667624806,0.01466,68230.0,68220.0,0.19351973]
[1771667625013,0.01466,68230.0,68221.0,0.014662]
[1771667625309,0.01466,68230.0,68223.0,0.014662]
[1771667625694,0.01466,68230.0,68223.0,0.029324]
[1771667626001,0.54601578,68212.0,68197.0,0.0257092]
[1771667626200,0.53135178,68221.0,68201.0,0.014666]
[1771667626394,0.014664,68214.0,68210.0,0.17885773]
[1771667626599,0.014664,68214.0,68207.0,0.014665]
[1771667626600,0.014663,68217.0,68208.0,0.014665]
[1771667626799,0.014663,68215.0,68208.0,0.014665]
[1771667627000,0.014663,68215.0,68209.0,0.014665]
[1771667627207,0.014664,68213.0,68207.0,0.014665]
[1771667627410,0.23380746,68212.0,68207.0,0.014665]
[1771667627702,0.014664,68213.0,68207.0,0.014665]
[1771667627893,0.23380566,68212.0,68207.0,0.014665]
[1771667628094,0.014664,68212.0,68207.0,0.014665]
[1771667631012,0.014663,68217.0,68203.0,0.014666]
[1771667631210,0.014663,68215.0,68210.0,0.014664]
[1771667631508,0.014664,68214.0,68207.0,0.17885773]
[1771667631709,0.014664,68213.0,68207.0,0.17885773]
[1771667632010,0.014664,68212.0,68204.0,0.014666]
[1771667632210,0.014664,68212.0,68206.0,0.02611488]
[1771667633112,0.014664,68212.0,68207.0,0.08640663]
[1771667633407,0.014663,68217.0,68207.0,0.08640663]
[1771667633609,0.014664,68215.0,68206.0,0.014665]
[1771667633813,0.014664,68213.0,68206.0,0.02611488]
[1771667634315,0.014665,68210.0,68207.0,0.08640663]
[1771667634703,0.014665,68210.0,68209.0,0.08640663]
[1771667634908,0.014664,68212.0,68206.0,0.02611488]
[1771667635114,0.014665,68210.0,68206.0,0.11252151]
[1771667635316,0.014665,68210.0,68206.0,0.02611488]
[1771667635814,0.014665,68210.0,68208.0,0.08640663]
[1771667636215,0.014664,68212.0,68209.0,0.08640663]
[1771667636416,0.014664,68212.0,68204.0,0.014666]
[1771667636619,0.014661,68227.0,68212.0,0.014664]
[1771667636915,0.014662,68223.0,68213.0,0.02611488]
[1771667637117,0.014663,68218.0,68213.0,0.02611488]
[1771667637722,0.014663,68217.0,68213.0,0.02611488]
[1771667638318,0.014663,68218.0,68216.0,0.08640663]
[1771667638510,0.029326,68218.0,68213.0,0.02611488]
[1771667638817,0.029326,68218.0,68217.0,0.08640663]
[1771667640419,0.014663,68216.0,68210.0,0.19352173]
[1771667640720,0.014663,68216.0,68211.0,0.02611488]
[1771667640918,0.014663,68218.0,68211.0,0.02611488]
[1771667641319,0.014663,68219.0,68211.0,0.04077888]
[1771667641616,0.014663,68219.0,68212.0,0.014664]
[1771667642014,0.014663,68216.0,68212.0,0.02611488]
[1771667642414,0.014662,68222.0,68214.0,0.014664]
[1771667642610,0.014658,68241.0,68216.0,0.014663]
[1771667642817,0.014659,68238.0,68222.0,0.014662]
[1771667643016,0.014659,68234.0,68222.0,0.014662]
[1771667643216,0.014661,68228.0,68220.0,0.014662]
[1771667643520,0.014661,68228.0,68221.0,0.02611488]
[1771667643721,0.014661,68227.0,68221.0,0.02611488]
[1771667644121,0.2484398,68226.0,68221.0,0.02611488]
[1771667644321,0.014661,68226.0,68221.0,0.02611488]
[1771667646123,0.014661,68225.0,68221.0,0.02611488]
[1771667646517,0.19386081,68224.0,68221.0,0.02611488]
[1771667646716,0.014661,68225.0,68221.0,0.02611488]
[1771667647421,0.014661,68226.0,68221.0,0.02611488]
[1771667647828,0.19351773,68232.0,68221.0,0.02611488]
[1771667648217,0.014661,68225.0,68221.0,0.02611488]
[1771667648423,0.029322,68225.0,68221.0,0.02611488]
[1771667649025,0.014662,68224.0,68221.0,0.02611488]
[1771667649220,0.014662,68223.0,68221.0,0.02611488]
[1771667649517,0.014662,68223.0,68215.0,0.014663]
[1771667649723,0.014662,68223.0,68217.0,0.02611488]
[1771667652627,0.014662,68224.0,68217.0,0.02611488]
[1771667653127,0.014662,68223.0,68217.0,0.02611488]
[1771667653328,0.014661,68225.0,68217.0,0.04077788]
[1771667655226,0.014662,68224.0,68217.0,0.04077788]
[1771667655526,0.014661,68225.0,68217.0,0.04077788]
[1771667655727,0.029322,68225.0,68217.0,0.04077788]
[1771667655928,0.014662,68224.0,68217.0,0.02611488]
[1771667656628,0.014661,68225.0,68217.0,0.04077788]
[1771667657335,0.014661,68225.0,68217.0,0.014663]
[1771667658135,0.014661,68225.0,68218.0,0.014663]
[1771667658338,0.014661,68225.0,68217.0,0.04077788]
[1771667658939,0.014661,68225.0,68217.0,0.014663]
[1771667659238,0.029322,68225.0,68217.0,0.014663]
[1771667659440,0.014661,68225.0,68217.0,0.014663]
[1771667660133,0.014662,68224.0,68217.0,0.014663]
[1771667660339,0.014661,68225.0,68217.0,0.014663]
[1771667660539,0.014661,68225.0,68218.0,0.02611488]
[1771667663840,0.014661,68225.0,68200.0,0.20596742]
[1771667663841,0.5643596,68228.0,68210.0,0.014664]
[1771667664143,0.014662,68221.0,68213.0,0.014664]
[1771667664343,0.24292506,68220.0,68213.0,0.014664]
[1771667664643,0.24292506,68220.0,68208.0,0.1]
[1771667664945,0.014662,68223.0,68214.0,0.014663]
[1771667664946,0.029324,68223.0,68214.0,0.014663]
[1771667665144,0.014662,68222.0,68214.0,0.014663]
[1771667670850,0.014662,68221.0,68214.0,0.014663]
[1771667671851,0.014662,68221.0,68213.0,0.014664]
[1771667675242,0.014662,68221.0,68205.0,0.1]
[1771667675243,0.5643596,68221.0,68189.0,0.03219559]
[1771667675456,0.5643596,68208.0,68189.0,0.03219559]
[1771667675753,0.014668,68196.0,68189.0,0.03219559]
[1771667676056,0.014667,68197.0,68189.0,0.03219559]
[1771667676446,0.00016874,68196.0,68189.0,0.03319559]
[1771667676654,0.00016874,68196.0,68190.0,0.03130404]
[1771667677045,0.00016874,68196.0,68189.0,0.03319559]
[1771667677359,0.014668,68193.0,68187.0,0.00237286]
[1771667677657,0.014669,68192.0,68186.0,0.01730041]
[1771667677856,0.014669,68192.0,68187.0,0.03130404]
[1771667678056,0.014668,68195.0,68181.0,0.00073334]
[1771667678360,0.014668,68193.0,68184.0,0.01467]
[1771667678551,0.014668,68192.0,68184.0,0.01467]
[1771667678752,0.014668,68192.0,68187.0,0.03130404]
[1771667679153,0.014668,68192.0,68182.0,0.01467]
[1771667679462,0.014669,68191.0,68187.0,0.03130404]
[1771667679650,0.014669,68191.0,68182.0,0.01467]
[1771667679856,0.014669,68191.0,68187.0,0.03130404]
[1771667680360,0.014669,68191.0,68182.0,0.01467]
[1771667681256,0.014669,68190.0,68182.0,0.01467]
[1771667681455,0.014669,68190.0,68181.0,0.01540434]
[1771667682056,0.014669,68190.0,68184.0,0.0008]
[1771667682358,0.014669,68190.0,68181.0,0.01540434]
[1771667682859,0.014669,68190.0,68182.0,0.01467]
[1771667683557,0.014669,68190.0,68181.0,0.00073334]
[1771667683752,0.01467,68186.0,68181.0,0.00073334]
[1771667683952,0.01467,68186.0,68171.0,0.014673]
[1771667683953,0.014671,68180.0,68171.0,0.014673]
[1771667684148,0.014671,68178.0,68169.0,0.014673]
[1771667684358,0.00011787,68179.0,68169.0,0.014673]
[1771667684757,0.00011787,68179.0,68170.0,0.014673]
[1771667684758,0.01478887,68179.0,68170.0,0.014673]
[1771667685259,0.00011787,68179.0,68171.0,0.014673]
[1771667685460,0.00011787,68179.0,68172.0,0.014673]
[1771667685852,0.00011787,68179.0,68171.0,0.014673]
[1771667686053,0.60786219,68189.0,68166.0,0.46948]
[1771667686054,0.014668,68193.0,68170.0,0.26415481]
[1771667686253,0.014669,68189.0,68180.0,0.014671]
[1771667687062,5.087e-05,68188.0,68181.0,0.014671]
[1771667688157,5.087e-05,68188.0,68182.0,0.01467]
[1771667689862,5.087e-05,68188.0,68183.0,0.01467]
[1771667691961,0.01467,68183.0,68160.0,0.5268991]
[1771667692166,0.01467,68183.0,68177.0,0.014672]
[1771667692360,0.01467,68183.0,68176.0,0.014672]
[1771667692555,0.014671,68182.0,68176.0,0.014672]
[1771667692760,0.014671,68181.0,68172.0,0.014673]
[1771667692961,0.014671,68182.0,68175.0,0.014672]
[1771667693162,0.014671,68182.0,68176.0,0.014672]
[1771667693560,0.01467,68183.0,68177.0,0.014672]
[1771667694062,5.087e-05,68188.0,68170.0,0.27344975]
[1771667694265,5.087e-05,68188.0,68180.0,0.014671]
[1771667694655,5.087e-05,68188.0,68178.0,0.014671]
[1771667694862,0.014669,68187.0,68181.0,0.014671]
[1771667695163,0.014669,68187.0,68179.0,0.014671]
[1771667695363,0.01467,68186.0,68180.0,0.014671]
[1771667697265,0.01467,68184.0,68177.0,0.014672]
[1771667697464,0.02934,68184.0,68177.0,0.014672]
[1771667697664,0.01467,68184.0,68177.0,0.014672]
[1771667698166,5.087e-05,68188.0,68179.0,0.014671]
[1771667699166,0.01467,68186.0,68178.0,0.014671]
[1771667699371,0.01467,68186.0,68179.0,0.014671]
[1771667700470,0.014667,68199.0,68182.0,0.01467]
[1771667700661,0.014669,68190.0,68182.0,0.02934]
[1771667700865,0.014668,68194.0,68182.0,0.01467]
[1771667700866,0.014669,68189.0,68182.0,0.01467]
[1771667701162,0.014671,68182.0,68174.0,0.014672]
[1771667701362,0.014671,68179.0,68172.0,0.014673]
[1771667701569,0.014671,68179.0,68171.0,0.014673]
[1771667701870,0.014671,68180.0,68172.0,0.014673]
[1771667702070,0.014671,68179.0,68171.0,0.014673]
[1771667702271,0.014671,68179.0,68172.0,0.014673]
[1771667702572,0.014671,68179.0,68169.0,0.014673]
[1771667703367,0.01467,68183.0,68171.0,0.014673]
[1771667703672,0.014671,68182.0,68171.0,0.014673]
[1771667704271,0.014671,68182.0,68173.0,0.014672]
[1771667704664,0.014671,68181.0,68172.0,0.014673]
[1771667704968,0.014671,68181.0,68171.0,0.014673]
[1771667705269,0.014671,68181.0,68169.0,0.014673]
[1771667705772,0.014671,68179.0,68169.0,0.014673]
[1771667706270,0.014671,68179.0,68171.0,0.014673]
[1771667706470,0.014671,68180.0,68172.0,0.014673]
[1771667709073,0.014671,68180.0,68174.0,0.00088]
[1771667709273,0.014671,68180.0,68172.0,0.014673]
[1771667716781,0.014671,68179.0,68171.0,0.014673]
[1771667717379,0.014671,68179.0,68172.0,0.014673]
[1771667717581,0.014671,68180.0,68172.0,0.014673]
[1771667720584,0.014671,68181.0,68173.0,0.014672]
[1771667721387,0.55075747,68185.0,68173.0,0.014672]
[1771667721388,0.014671,68182.0,68173.0,0.014672]
[1771667721584,0.23121341,68181.0,68173.0,0.014672]
[1771667721788,0.014671,68182.0,68173.0,0.014672]
[1771667722084,0.23121341,68181.0,68173.0,0.014672]
[1771667722284,0.014671,68182.0,68173.0,0.014672]
[1771667722479,0.23121544,68181.0,68173.0,0.014672]
[1771667722685,0.014671,68182.0,68173.0,0.014672]
[1771667722886,0.23121544,68181.0,68175.0,0.014672]
[1771667723086,0.01467,68183.0,68175.0,0.014672]
[1771667723287,0.23387274,68182.0,68175.0,0.014672]
[1771667723485,0.23387274,68181.0,68175.0,0.014672]
[1771667723683,0.23387274,68180.0,68175.0,0.014672]
[1771667723884,0.01467,68183.0,68175.0,0.014672]
[1771667724085,0.23387274,68182.0,68177.0,0.0008]
[1771667724289,0.23387274,68181.0,68175.0,0.014672]
[1771667724579,0.23387274,68180.0,68175.0,0.014672]
[1771667724890,0.01467,68183.0,68175.0,0.014672]
[1771667725091,0.2338961,68182.0,68175.0,0.014672]
[1771667725386,0.2338961,68181.0,68175.0,0.014672]
[1771667725586,0.2338961,68180.0,68175.0,0.014672]
[1771667725787,0.01467,68183.0,68175.0,0.014672]
[1771667725988,0.2338964,68182.0,68175.0,0.014672]
[1771667726187,0.2338964,68181.0,68175.0,0.014672]
[1771667726487,0.2338964,68180.0,68175.0,0.014672]
[1771667726679,0.01467,68183.0,68175.0,0.014672]
[1771667726891,0.23389682,68182.0,68175.0,0.014672]
[1771667727090,0.23389682,68181.0,68175.0,0.014672]
[1771667727291,0.23389682,68180.0,68175.0,0.014672]
[1771667727487,0.53608747,68194.0,68166.0,0.24422471]
[1771667727693,0.014669,68189.0,68179.0,0.014671]
[1771667727892,0.014669,68187.0,68179.0,0.014671]
[1771667728093,0.014669,68188.0,68179.0,0.029342]
[1771667730099,0.014669,68188.0,68180.0,0.014671]
[1771667739510,0.01467,68185.0,68176.0,0.014672]
[1771667739708,0.01467,68186.0,68177.0,0.014672]
[1771667742612,0.01467,68185.0,68176.0,0.014672]